{"text_format":"3","workbook":"xlsx","n_sheets":4,"sheets":["Парични потоци","Месечни доходи","Месечни разходи","ДАННИ ЗА ДИАГРАМА"],"not_rendered":{"charts":1,"defined_names":10},"read":"whole","date_system":"1900"}

{"sheet":"Парични потоци","index":0,"n_rows":9,"n_cols":5,"rows_kept":9}
[null,"Име"]
[null,"Семеен бюджет"]
[null,{"$f":"TEXT(TODAY(),\"mmmm\")","v":"януари"}]
[null,{"$f":"YEAR(TODAY())","v":2017}]
[null,"Забележка: Таблицата \"Парични потоци\" се изчислява автоматично на база въведените данни в работните листове \"Месечни доходи\" и \"Месечни разходи\""]
[null,"Парични потоци","Прогнозни","Действителни","Разминаване"]
[null,"Общ доход",{"$f":"Доходи[[#Totals],[Прогнозни]]","v":{"v":5700,"d":"5,700"}},{"$f":"Доходи[[#Totals],[Действителни]]","v":{"v":5500,"d":"5,500"}},{"$f":"Доходи[[#Totals],[Разминаване]]","v":-200}]
[null,"Общо разходи",{"$f":"Разходи[[#Totals],[Прогнозни]]","v":{"v":3603,"d":"3,603"}},{"$f":"Разходи[[#Totals],[Действителни]]","v":{"v":3655,"d":"3,655"}},{"$f":"Разходи[[#Totals],[Разминаване]]","v":-52}]
[null,"Общо",{"$f":"C7-C8","v":{"v":2097,"d":"2,097"}},{"$f":"D7-D8","v":{"v":1845,"d":"1,845"}},{"$f":"SUBTOTAL(109,ПаричниПотоци[Разминаване])","v":-252}]

{"sheet":"Месечни доходи","index":1,"n_rows":9,"n_cols":5,"rows_kept":9}
[null,{"$f":"Име","v":"Име"}]
[null,{"$f":"ЗаглавиеБюджет","v":"Семеен бюджет"}]
[null,{"$f":"Месец","v":"януари"}]
[null,{"$f":"Година","v":2017}]
[null,"Месечни доходи","Прогнозни","Действителни","Разминаване"]
[null,"Доход 1",{"v":4000,"d":"4,000"},{"v":4000,"d":"4,000"},{"$f":"Доходи[[#This Row],[Действителни]]-Доходи[[#This Row],[Прогнозни]]","v":0}]
[null,"Доход 2",{"v":1400,"d":"1,400"},{"v":1500,"d":"1,500"},{"$f":"Доходи[[#This Row],[Действителни]]-Доходи[[#This Row],[Прогнозни]]","v":100}]
[null,"Други доходи",300,0,{"$f":"Доходи[[#This Row],[Действителни]]-Доходи[[#This Row],[Прогнозни]]","v":-300}]
[null,"Общо",{"$f":"SUBTOTAL(109,Доходи[Прогнозни])","v":{"v":5700,"d":"5,700"}},{"$f":"SUBTOTAL(109,Доходи[Действителни])","v":{"v":5500,"d":"5,500"}},{"$f":"SUBTOTAL(109,Доходи[Разминаване])","v":-200}]

{"sheet":"Месечни разходи","index":2,"n_rows":26,"n_cols":5,"rows_kept":26}
[null,{"$f":"Име","v":"Име"}]
[null,{"$f":"ЗаглавиеБюджет","v":"Семеен бюджет"}]
[null,{"$f":"Месец","v":"януари"}]
[null,{"$f":"Година","v":2017}]
[null,"Месечни разходи","Прогнозни","Действителни","Разминаване"]
[null,"Домакинство",{"v":1500,"d":"1,500"},{"v":1500,"d":"1,500"},{"$f":"Разходи[[#This Row],[Прогнозни]]-Разходи[[#This Row],[Действителни]]","v":0}]
[null,"Хранителни стоки",250,280,{"$f":"Разходи[[#This Row],[Прогнозни]]-Разходи[[#This Row],[Действителни]]","v":-30}]
[null,"Телефон",38,38,{"$f":"Разходи[[#This Row],[Прогнозни]]-Разходи[[#This Row],[Действителни]]","v":0}]
[null,"Ток/газ",65,78,{"$f":"Разходи[[#This Row],[Прогнозни]]-Разходи[[#This Row],[Действителни]]","v":-13}]
[null,"ВИК/боклук",25,21,{"$f":"Разходи[[#This Row],[Прогнозни]]-Разходи[[#This Row],[Действителни]]","v":4}]
[null,"Кабелна телевизия",75,83,{"$f":"Разходи[[#This Row],[Прогнозни]]-Разходи[[#This Row],[Действителни]]","v":-8}]
[null,"Интернет",60,60,{"$f":"Разходи[[#This Row],[Прогнозни]]-Разходи[[#This Row],[Действителни]]","v":0}]
[null,"Поддръжка/ремонти",0,60,{"$f":"Разходи[[#This Row],[Прогнозни]]-Разходи[[#This Row],[Действителни]]","v":-60}]
[null,"Детска градина",180,150,{"$f":"Разходи[[#This Row],[Прогнозни]]-Разходи[[#This Row],[Действителни]]","v":30}]
[null,"Обучение",250,250,{"$f":"Разходи[[#This Row],[Прогнозни]]-Разходи[[#This Row],[Действителни]]","v":0}]
[null,"Домашни любимци",75,80,{"$f":"Разходи[[#This Row],[Прогнозни]]-Разходи[[#This Row],[Действителни]]","v":-5}]
[null,"Транспорт",280,260,{"$f":"Разходи[[#This Row],[Прогнозни]]-Разходи[[#This Row],[Действителни]]","v":20}]
[null,"Хигиенни материали",75,65,{"$f":"Разходи[[#This Row],[Прогнозни]]-Разходи[[#This Row],[Действителни]]","v":10}]
[null,"Застраховка",255,255,{"$f":"Разходи[[#This Row],[Прогнозни]]-Разходи[[#This Row],[Действителни]]","v":0}]
[null,"Кредитни карти",100,100,{"$f":"Разходи[[#This Row],[Прогнозни]]-Разходи[[#This Row],[Действителни]]","v":0}]
[null,"Заеми",0,0,{"$f":"Разходи[[#This Row],[Прогнозни]]-Разходи[[#This Row],[Действителни]]","v":0}]
[null,"Данъци",0,0,{"$f":"Разходи[[#This Row],[Прогнозни]]-Разходи[[#This Row],[Действителни]]","v":0}]
[null,"Подаръци/благотворителност",150,150,{"$f":"Разходи[[#This Row],[Прогнозни]]-Разходи[[#This Row],[Действителни]]","v":0}]
[null,"Спестявания",225,225,{"$f":"Разходи[[#This Row],[Прогнозни]]-Разходи[[#This Row],[Действителни]]","v":0}]
[null,"Други",0,0,{"$f":"Разходи[[#This Row],[Прогнозни]]-Разходи[[#This Row],[Действителни]]","v":0}]
[null,"Общо",{"$f":"SUBTOTAL(109,Разходи[Прогнозни])","v":{"v":3603,"d":"3,603"}},{"$f":"SUBTOTAL(109,Разходи[Действителни])","v":{"v":3655,"d":"3,655"}},{"$f":"SUBTOTAL(109,Разходи[Разминаване])","v":-52}]

{"sheet":"ДАННИ ЗА ДИАГРАМА","index":3,"n_rows":6,"n_cols":4,"rows_kept":6,"hidden":true}
[null,"ДАННИ ЗА ДИАГРАМА"]
[]
[null,null,"Прогнозни","Действителни"]
[null,"Парични потоци",{"$f":"ПаричниПотоци[[#Totals],[Прогнозни]]","v":2097},{"$f":"ПаричниПотоци[[#Totals],[Действителни]]","v":1845}]
[null,"Месечни доходи",{"$f":"Доходи[[#Totals],[Прогнозни]]","v":5700},{"$f":"Доходи[[#Totals],[Действителни]]","v":5500}]
[null,"Месечни разходи",{"$f":"Разходи[[#Totals],[Прогнозни]]","v":3603},{"$f":"Разходи[[#Totals],[Действителни]]","v":3655}]